bitfinex/quotes_BTCUSD_20241010
["timestamp","ask_amount","ask_price","bid_price","bid_amount"]
[1728522288912,0.001816,60567.0,60566.0,2.72872936]
[1728522289151,0.001,60567.0,60566.0,2.72872936]
[1728522291013,0.000816,60572.0,60571.0,0.47740182]
[1728522291231,0.000816,60572.0,60571.0,1.57422946]
[1728522291459,0.000816,60572.0,60571.0,1.57622946]
[1728522291694,0.000816,60572.0,60571.0,1.57422946]
[1728522292395,0.001634,60575.0,60573.0,0.001184]
[1728522292833,0.001634,60575.0,60574.0,0.89662364]
[1728522295235,0.001634,60575.0,60574.0,0.265087]
[1728522297445,0.001634,60575.0,60574.0,0.1]
[1728522297683,0.001634,60575.0,60574.0,0.265087]
[1728522298158,0.001634,60575.0,60574.0,0.1]
[1728522298431,0.001634,60575.0,60574.0,0.11462918]
[1728522298902,0.001634,60575.0,60574.0,0.27971618]
[1728522299388,0.001634,60575.0,60574.0,0.11462918]
[1728522299858,0.001634,60575.0,60574.0,0.17971618]
[1728522300080,0.001634,60575.0,60574.0,0.01462918]
[1728522300352,0.166718,60575.0,60574.0,0.01462918]
[1728522300599,0.166718,60575.0,60573.0,0.001184]
[1728522300600,0.001634,60575.0,60573.0,0.166273]
[1728522300831,0.001634,60575.0,60573.0,0.001184]
[1728522301308,0.001634,60575.0,60573.0,0.166273]
[1728522301783,0.002634,60575.0,60573.0,0.166273]
[1728522302029,0.001634,60575.0,60573.0,0.166273]
[1728522302261,0.165087,60574.0,60573.0,0.01571419]
[1728522302504,0.165087,60574.0,60573.0,0.001184]
[1728522302505,0.52342464,60574.0,60573.0,0.001184]
[1728522302741,0.165095,60571.0,60570.0,0.01487795]
[1728522302978,0.165103,60568.0,60567.0,0.2483382]
[1728522303224,0.31594754,60568.0,60567.0,0.2483382]
[1728522303459,0.165106,60567.0,60566.0,0.001634]
[1728522303682,0.07404102,60568.0,60566.0,0.001634]
[1728522303934,0.0493622,60567.0,60566.0,0.49696]
[1728522304351,0.0493622,60569.0,60568.0,0.165103]
[1728522304355,0.04935823,60569.0,60567.0,0.330211]
[1728522304604,0.04935823,60569.0,60566.0,0.331851]
[1728522304605,0.04935944,60570.0,60566.0,0.001634]
[1728522304838,0.04935944,60571.0,60570.0,0.165098]
[1728522305560,0.07404102,60572.0,60570.0,0.165098]
[1728522305804,0.07404102,60572.0,60567.0,0.33021]
[1728522305805,0.04936043,60572.0,60567.0,0.5785462]
[1728522306055,0.10035536,60575.0,60572.0,0.330185]
[1728522306056,0.001634,60575.0,60572.0,0.330185]
[1728522306300,0.001634,60575.0,60574.0,0.165087]
[1728522307210,0.001634,60575.0,60573.0,0.1]
[1728522307441,0.002634,60575.0,60574.0,0.165087]
[1728522308586,0.001634,60575.0,60574.0,0.165087]
[1728522308818,0.001634,60575.0,60574.0,0.168087]
[1728522309054,0.001634,60575.0,60574.0,0.165087]
[1728522309520,0.001634,60575.0,60574.0,0.166087]
[1728522310219,0.001634,60575.0,60574.0,0.165087]
[1728522310675,0.001634,60575.0,60574.0,0.166087]
[1728522312152,0.001634,60575.0,60574.0,0.26844]
[1728522312400,0.001634,60575.0,60574.0,0.26744]
[1728522312634,0.001634,60575.0,60574.0,0.166087]
[1728522312867,0.001634,60575.0,60574.0,0.269877]
[1728522313082,0.001634,60575.0,60574.0,0.165087]
[1728522313557,0.001634,60575.0,60574.0,0.166087]
[1728522315437,0.001634,60575.0,60574.0,0.265087]
[1728522315896,0.001634,60575.0,60574.0,0.266087]
[1728522316603,0.001634,60575.0,60574.0,0.265087]
[1728522316835,0.001634,60575.0,60574.0,0.266087]
[1728522318017,0.001634,60575.0,60574.0,1.77190546]
[1728522318483,0.001634,60575.0,60574.0,1.61337546]
[1728522318703,0.001634,60575.0,60574.0,0.84849664]
[1728522318937,0.001634,60575.0,60574.0,0.410832]
[1728522319161,0.001634,60575.0,60574.0,0.409832]
[1728522319659,0.002634,60575.0,60574.0,0.416832]
[1728522319884,0.001634,60575.0,60574.0,0.409832]
[1728522320113,0.002634,60575.0,60574.0,0.416832]
[1728522321549,0.002634,60575.0,60574.0,0.272087]
[1728522322239,0.001634,60575.0,60574.0,0.265087]
[1728522322459,0.002634,60575.0,60574.0,0.271087]
[1728522325042,0.002634,60575.0,60574.0,0.47198]
[1728522325752,0.002634,60575.0,60574.0,0.436265]
[1728522326196,0.002634,60575.0,60574.0,0.42196]
[1728522326433,0.002634,60575.0,60574.0,0.407615]
[1728522329029,0.002634,60575.0,60574.0,0.271087]
[1728522329500,0.05203806,60575.0,60574.0,0.271087]
[1728522331080,0.002634,60575.0,60574.0,0.271087]
[1728522331308,0.0767401,60575.0,60574.0,0.271087]
[1728522331528,0.08342163,60575.0,60574.0,0.271087]
[1728522335285,0.00931553,60575.0,60574.0,0.271087]
[1728522335500,0.08342163,60575.0,60574.0,0.271087]
[1728522335937,0.0767401,60575.0,60574.0,0.271087]
[1728522336155,0.002634,60575.0,60574.0,0.271087]
[1728522336421,0.002634,60575.0,60574.0,0.006]
[1728522336422,0.18526704,60575.0,60574.0,0.006]
[1728522336640,0.26166704,60575.0,60574.0,0.006]
[1728522336877,0.19058029,60575.0,60574.0,0.006]
[1728522337376,0.3142763,60575.0,60574.0,0.006]
[1728522338499,0.3132763,60575.0,60573.0,0.28107578]
[1728522338756,0.18263304,60574.0,60573.0,0.28107578]
[1728522339422,0.18794629,60574.0,60573.0,0.28107578]
[1728522339883,0.18294629,60574.0,60573.0,0.28107578]
[1728522340117,0.18294629,60574.0,60573.0,0.28707578]
[1728522340369,0.18294629,60574.0,60573.0,0.28107578]
[1728522341073,0.10427268,60574.0,60573.0,0.28107578]
[1728522341319,0.10427268,60574.0,60573.0,0.01598778]
[1728522341562,0.10427233,60574.0,60573.0,0.01598778]
[1728522341805,0.10427233,60574.0,60573.0,0.28107778]
[1728522342283,0.10427233,60574.0,60573.0,0.28807778]
[1728522342580,0.10527233,60574.0,60573.0,0.28807778]
[1728522346595,0.10527471,60574.0,60573.0,0.28807778]
[1728522347285,0.08053094,60574.0,60573.0,0.28807778]
[1728522348703,0.00631325,60574.0,60573.0,0.28807778]
[1728522349722,0.09996146,60574.0,60573.0,0.28807778]
[1728522350381,0.09866456,60574.0,60573.0,0.28807778]
[1728522350864,0.09336146,60574.0,60573.0,0.28807778]
[1728522351089,0.09866456,60574.0,60573.0,0.28807778]
[1728522351541,0.0053031,60574.0,60573.0,0.28807778]
[1728522354955,0.18809626,60574.0,60573.0,0.28807778]
[1728522355632,0.31179808,60574.0,60573.0,0.28807778]
[1728522355915,0.18809626,60574.0,60573.0,0.28807778]
[1728522358085,0.18809626,60574.0,60573.0,0.47560878]
[1728522358317,0.18279316,60574.0,60573.0,0.47560878]
[1728522358786,0.30659164,60574.0,60573.0,0.47560878]
[1728522359031,0.30740864,60574.0,60573.0,0.47560878]
[1728522359269,0.31272095,60574.0,60573.0,0.47560878]
[1728522359513,0.31271995,60574.0,60573.0,0.47560878]
[1728522360475,0.31271995,60574.0,60573.0,0.55660878]
[1728522360726,0.31271701,60574.0,60573.0,0.39019678]
[1728522361937,0.31271438,60574.0,60573.0,0.39019678]
[1728522364329,0.31271438,60574.0,60573.0,0.55103442]
[1728522364610,0.08040187,60574.0,60573.0,0.74733442]
[1728522364834,0.08041511,60574.0,60573.0,0.76277535]
[1728522365077,0.08041511,60574.0,60573.0,0.76277533]
[1728522365078,0.00612931,60574.0,60573.0,0.76277533]
[1728522365314,0.05033956,60574.0,60573.0,0.88653598]
[1728522365507,0.000817,60574.0,60573.0,0.88653598]
[1728522366035,0.02315128,60575.0,60574.0,0.265087]
[1728522366275,0.0742858,60577.0,60576.0,0.265081]
[1728522366517,0.0742858,60578.0,60577.0,0.265079]
[1728522366741,0.0742858,60578.0,60577.0,0.68354891]
[1728522366956,0.0742858,60578.0,60577.0,0.65949991]
[1728522367662,0.09923402,60579.0,60577.0,0.49442091]
[1728522367903,0.09923402,60579.0,60578.0,0.54174391]
[1728522368129,0.28202814,60579.0,60578.0,0.54174391]
[1728522368351,0.28202814,60579.0,60578.0,0.54173336]
[1728522368807,0.28202029,60579.0,60578.0,0.57098936]
[1728522369268,0.0744751,60579.0,60578.0,0.67098936]
[1728522369784,0.0002,60579.0,60578.0,0.67198936]
[1728522371672,0.001017,60579.0,60578.0,0.67198936]
[1728522372415,0.001017,60579.0,60578.0,0.832827]
[1728522375243,0.001017,60579.0,60578.0,0.81739664]
[1728522375713,0.001017,60579.0,60578.0,0.83281195]
[1728522375984,0.001017,60579.0,60578.0,0.9565726]
[1728522377127,0.001017,60579.0,60578.0,0.94115729]
[1728522378064,0.001017,60579.0,60578.0,0.95656822]
[1728522379076,0.001017,60579.0,60578.0,0.94115729]
[1728522383787,0.001017,60579.0,60578.0,1.64506829]
[1728522384022,0.001017,60579.0,60578.0,1.58732529]
[1728522384484,0.001017,60579.0,60578.0,1.27426829]
[1728522385638,0.001017,60579.0,60578.0,1.35716829]
[1728522386176,0.001017,60579.0,60578.0,1.35916829]
[1728522386422,0.001017,60579.0,60578.0,1.37458329]
[1728522387132,0.001017,60579.0,60578.0,1.37258329]
[1728522387599,0.001017,60579.0,60578.0,1.48598329]
[1728522388318,0.09899698,60585.0,60578.0,1.48598329]
[1728522388319,0.04948825,60585.0,60583.0,0.121]
[1728522388548,0.2483382,60588.0,60587.0,0.265051]
[1728522388756,0.000817,60592.0,60591.0,0.265041]
[1728522389523,0.05687256,60592.0,60591.0,0.1]
[1728522389763,0.27676473,60592.0,60591.0,0.1]
[1728522390029,0.165043,60590.0,60589.0,0.12376065]
[1728522390268,0.34755149,60590.0,60586.0,0.265052]
[1728522390498,0.09888666,60590.0,60588.0,0.1]
[1728522390728,0.00658335,60589.0,60588.0,0.1]
[1728522391186,0.00658335,60589.0,60588.0,0.265049]
[1728522391663,0.10547001,60589.0,60586.0,0.265054]
[1728522391888,0.10547001,60589.0,60586.0,0.103]
[1728522391889,0.26393635,60588.0,60586.0,0.103]
[1728522392125,0.09888635,60588.0,60586.0,0.265051]
[1728522392371,0.00658335,60587.0,60586.0,0.1]
[1728522392615,0.10547301,60587.0,60586.0,0.265054]
[1728522392864,0.28799567,60587.0,60586.0,0.1]
[1728522393063,0.31271639,60587.0,60586.0,0.1]
[1728522393332,0.31271639,60587.0,60586.0,0.74932984]
[1728522393579,0.00658335,60587.0,60586.0,1.56263938]
[1728522393861,0.00658335,60587.0,60586.0,1.31441338]
[1728522394100,0.000817,60592.0,60591.0,0.265041]
[1728522394345,0.000817,60592.0,60591.0,0.58793165]
[1728522394584,0.000817,60592.0,60591.0,0.76417468]
[1728522395049,0.000817,60592.0,60591.0,0.74876929]
[1728522395758,0.002817,60592.0,60591.0,0.74876929]
[1728522396676,0.002817,60592.0,60591.0,0.81344217]
[1728522396900,0.002817,60592.0,60591.0,0.78686317]
[1728522398086,0.002817,60592.0,60591.0,0.61431217]
[1728522398544,0.002817,60592.0,60591.0,0.76143017]
[1728522402272,0.002817,60592.0,60591.0,0.77599714]
[1728522402955,0.002817,60592.0,60591.0,1.50137714]
[1728522403187,0.002817,60592.0,60591.0,1.43379314]
[1728522403433,0.002817,60592.0,60591.0,1.42134114]
[1728522403656,0.002817,60592.0,60591.0,1.23290761]
[1728522403879,0.002817,60592.0,60591.0,1.42134114]
[1728522405740,0.000817,60592.0,60591.0,0.65146497]
[1728522406000,0.000817,60592.0,60591.0,0.02356697]
[1728522406001,0.001817,60592.0,60591.0,0.02356697]
[1728522406485,0.00844752,60592.0,60591.0,0.02356697]
[1728522406952,0.18974253,60592.0,60591.0,0.01456697]
[1728522407190,0.19074253,60592.0,60591.0,0.02356697]
[1728522407425,0.28952542,60592.0,60590.0,0.165043]
[1728522407660,0.07408493,60591.0,60590.0,0.165043]
[1728522408219,0.08071545,60591.0,60590.0,0.165043]
[1728522408715,0.00663052,60591.0,60590.0,0.165043]
[1728522409239,0.08154292,60591.0,60590.0,0.165043]
[1728522409509,0.002817,60591.0,60590.0,0.165043]
[1728522409735,0.00944752,60591.0,60590.0,0.165043]
[1728522410503,0.10821476,60591.0,60590.0,0.165043]
[1728522410723,0.00944752,60591.0,60590.0,0.165043]
[1728522410970,0.08356176,60591.0,60590.0,0.165043]
[1728522411679,0.08356584,60591.0,60590.0,0.165043]
[1728522412841,0.00944752,60591.0,60590.0,0.165043]
[1728522415859,0.05886748,60591.0,60590.0,0.165043]
[1728522416555,0.00944752,60591.0,60590.0,0.165043]
[1728522416781,0.05886748,60591.0,60590.0,0.165043]
[1728522418170,0.00944752,60591.0,60590.0,0.165043]
[1728522418424,0.00944752,60591.0,60590.0,0.42588064]
[1728522418679,0.00944752,60591.0,60590.0,1.64798764]
[1728522418903,0.002817,60591.0,60590.0,1.60183764]
[1728522419575,0.002817,60591.0,60590.0,1.56674164]
[1728522420311,0.07431832,60599.0,60590.0,1.56674164]
[1728522420312,0.0002,60599.0,60598.0,0.0811]
[1728522420536,0.0002,60599.0,60598.0,1.68146964]
[1728522421039,0.0002,60599.0,60598.0,1.66476664]
[1728522421278,0.0002,60599.0,60598.0,1.34386564]
[1728522422163,0.0002,60599.0,60598.0,0.265021]
[1728522423798,0.0002,60599.0,60598.0,0.27935021]
[1728522424275,0.28138425,60599.0,60598.0,0.17935021]
[1728522424531,0.00683162,60599.0,60598.0,0.27935021]
[1728522424754,0.10563989,60599.0,60598.0,0.11432921]
[1728522425019,0.10563989,60599.0,60598.0,0.27935021]
[1728522425237,0.45303534,60599.0,60598.0,0.11432921]
[1728522425489,0.47773741,60599.0,60598.0,0.01432921]
[1728522425982,0.31271841,60599.0,60597.0,0.165024]
[1728522426226,0.13034196,60599.0,60598.0,0.1]
[1728522426469,0.18922897,60599.0,60598.0,0.265021]
[1728522427193,0.29105665,60599.0,60597.0,0.1]
[1728522427428,0.28122503,60598.0,60597.0,0.1]
[1728522428133,0.28787705,60598.0,60597.0,0.265022]
[1728522429319,0.28791119,60598.0,60597.0,0.265022]
[1728522429793,0.45493319,60598.0,60594.0,0.01457529]
[1728522430038,0.12355451,60596.0,60594.0,0.01457529]
[1728522430291,0.30599047,60596.0,60593.0,0.1]
[1728522430522,0.09886696,60594.0,60593.0,0.265034]
[1728522431085,0.00663162,60594.0,60593.0,0.265034]
[1728522431342,0.31262209,60594.0,60593.0,0.265034]
[1728522431589,0.31267103,60594.0,60593.0,0.265034]
[1728522431830,0.18906758,60594.0,60593.0,0.265034]
[1728522432290,0.28794733,60594.0,60593.0,0.265034]
[1728522433003,0.28794733,60594.0,60593.0,0.267034]
[1728522433228,0.28794733,60594.0,60593.0,0.2819408]
[1728522433704,0.28876333,60594.0,60593.0,0.2819408]
[1728522435105,0.45379533,60594.0,60593.0,0.0169068]
[1728522435341,0.46831558,60594.0,60593.0,0.002]
[1728522435579,0.46831558,60594.0,60590.0,0.001632]
[1728522435580,0.359141,60591.0,60590.0,0.001632]
[1728522435811,0.94237097,60591.0,60590.0,0.001632]
[1728522436292,0.94237097,60591.0,60582.0,0.2483382]
[1728522436293,0.005,60585.0,60582.0,0.2483382]
[1728522436570,0.35849553,60583.0,60582.0,0.2483382]
[1728522436806,0.92011836,60583.0,60582.0,0.2483382]
[1728522437044,0.16507,60580.0,60575.0,0.2499722]
[1728522437289,0.5083436,60580.0,60575.0,0.2499722]
[1728522438006,0.51491073,60580.0,60575.0,0.2499722]
[1728522438797,0.6630677,60580.0,60575.0,0.2499722]
[1728522439065,0.6630677,60580.0,60575.0,0.001634]
[1728522439308,0.6730677,60580.0,60579.0,0.002634]
[1728522439555,0.52491073,60580.0,60579.0,0.002634]
[1728522444534,0.64819011,60580.0,60579.0,0.002634]
[1728522444993,0.06586779,60580.0,60579.0,0.167707]
[1728522445496,0.01656713,60580.0,60579.0,0.167707]
[1728522445938,0.01656713,60580.0,60579.0,0.002634]
[1728522446743,0.01656713,60580.0,60579.0,0.167707]
[1728522447198,0.01656713,60580.0,60579.0,0.18233559]
[1728522447199,0.01,60580.0,60579.0,0.18233559]
[1728522447646,0.01728983,60580.0,60579.0,0.18233559]
[1728522447871,0.01,60580.0,60579.0,0.18233559]
[1728522448330,0.17507,60580.0,60579.0,0.002634]
[1728522448559,0.1823611,60580.0,60579.0,0.002634]
[1728522450148,0.0172911,60580.0,60579.0,0.002634]
[1728522458499,0.0172911,60580.0,60579.0,0.267707]
[1728522458739,0.0172911,60580.0,60579.0,0.349107]
[1728522458990,0.01,60580.0,60579.0,0.349107]
[1728522459216,0.01,60580.0,60579.0,0.002634]
[1728522459477,0.17507,60580.0,60579.0,0.002634]
[1728522459719,0.01730898,60580.0,60579.0,0.002634]
[1728522461364,0.01730898,60580.0,60579.0,0.167707]
[1728522464942,0.01,60580.0,60579.0,0.167707]
[1728522465394,0.01731278,60580.0,60579.0,0.167707]
[1728522468417,0.01,60580.0,60579.0,0.167707]
[1728522468670,0.01731278,60580.0,60579.0,0.167707]
[1728522469605,0.06663542,60580.0,60579.0,0.167707]
[1728522469841,0.06663542,60580.0,60579.0,0.002634]
[1728522471647,0.01731278,60580.0,60579.0,0.002634]
[1728522472092,0.01731278,60580.0,60579.0,0.167707]
[1728522472584,0.09137258,60580.0,60579.0,0.167707]
[1728522474656,0.11605919,60580.0,60579.0,0.167707]
[1728522475136,0.2984362,60580.0,60579.0,0.167707]
[1728522476517,0.19968979,60580.0,60579.0,0.167707]
[1728522476750,0.3231228,60580.0,60579.0,0.167707]
[1728522477223,0.01731278,60580.0,60579.0,0.167707]
[1728522477511,0.08414896,60580.0,60579.0,0.46664053]
[1728522477987,0.01731185,60580.0,60579.0,0.46664053]
[1728522478228,0.01,60580.0,60579.0,0.46664053]
[1728522478422,0.01,60580.0,60579.0,0.54254053]
[1728522478733,0.07414896,60580.0,60579.0,0.80237817]
[1728522478983,0.04945359,60585.0,60584.0,0.26506]
[1728522479222,0.04945359,60587.0,60585.0,0.1]
[1728522479453,0.04945359,60587.0,60586.0,0.265054]
[1728522479705,0.07414896,60588.0,60587.0,0.265051]
[1728522480656,0.09886597,60589.0,60588.0,0.265049]
[1728522480898,0.28149288,60589.0,60588.0,0.265049]
[1728522481850,0.000817,60590.0,60589.0,0.265046]
[1728522481851,0.09968297,60590.0,60589.0,0.265046]
[1728522482089,0.28226391,60590.0,60589.0,0.265046]
[1728522482542,0.18339794,60590.0,60589.0,0.265046]
[1728522483291,0.19539794,60590.0,60589.0,0.266046]
[1728522483515,0.012817,60590.0,60589.0,0.266046]
[1728522484473,0.08697256,60590.0,60589.0,0.266046]
[1728522485820,0.09428441,60590.0,60589.0,0.266046]
[1728522486295,0.09428441,60590.0,60589.0,0.5143842]
[1728522486522,0.09428441,60590.0,60589.0,0.64617953]
[1728522486740,0.08697256,60590.0,60589.0,0.64617953]
[1728522486990,0.08697256,60590.0,60589.0,0.93687953]
[1728522487241,0.06224851,60590.0,60589.0,1.09771717]
[1728522487486,0.012817,60590.0,60589.0,1.09771717]
[1728522488244,0.012817,60590.0,60589.0,1.09971717]
[1728522488953,0.000817,60590.0,60589.0,1.09871717]
[1728522489421,0.004817,60590.0,60589.0,1.09871717]
[1728522489884,0.004817,60590.0,60589.0,0.91228364]
[1728522491586,0.004817,60590.0,60589.0,1.10271717]
[1728522492542,0.000816,60594.0,60593.0,0.65506853]
[1728522492856,0.000816,60594.0,60593.0,2.53047917]
[1728522493572,0.000816,60594.0,60593.0,2.69062717]
[1728522494512,0.000816,60594.0,60593.0,2.51239917]
[1728522494741,0.000816,60594.0,60593.0,2.51039917]
[1728522495975,0.000816,60594.0,60593.0,2.52339917]
[1728522496219,0.001816,60594.0,60593.0,2.52339917]
[1728522497907,0.001816,60594.0,60593.0,2.53200117]
[1728522498129,0.0002,60599.0,60598.0,0.167021]
[1728522498369,0.0002,60599.0,60598.0,1.96427417]
[1728522498625,0.0002,60599.0,60598.0,1.81587417]
[1728522499118,0.0002,60599.0,60598.0,1.81387417]
[1728522499830,0.0012,60599.0,60598.0,1.63846517]
[1728522500727,0.0012,60599.0,60598.0,1.63646517]
[1728522504033,0.0012,60599.0,60598.0,1.51756617]
[1728522504269,0.0012,60599.0,60598.0,0.516209]
[1728522504523,0.0012,60599.0,60598.0,0.413541]
[1728522506907,0.002017,60599.0,60598.0,0.636554]
[1728522507209,0.002017,60599.0,60598.0,0.272021]
[1728522507458,0.201517,60599.0,60598.0,0.007]
[1728522507699,0.201517,60599.0,60598.0,0.107]
[1728522507940,0.20814063,60599.0,60598.0,0.107]
[1728522508423,0.20814063,60599.0,60598.0,0.007]
[1728522508424,0.37315963,60599.0,60598.0,0.007]
[1728522508680,0.37315963,60599.0,60593.0,0.01623507]
[1728522508681,0.25740298,60599.0,60593.0,0.01623507]
[1728522508919,0.04928083,60598.0,60593.0,0.01623507]
[1728522509171,0.165032,60594.0,60593.0,0.01623507]
[1728522509879,0.17164509,60594.0,60593.0,0.01723507]
[1728522510118,0.00661309,60594.0,60593.0,0.11623507]
[1728522510593,0.003,60594.0,60593.0,0.11623507]
[1728522510824,0.00961309,60594.0,60593.0,0.11623507]
[1728522511069,0.003,60594.0,60593.0,0.11623507]
[1728522511303,0.00961309,60594.0,60593.0,0.11623507]
[1728522511997,0.00661309,60594.0,60593.0,0.11623507]
[1728522512463,0.01060818,60594.0,60593.0,0.11623507]
[1728522512701,0.00660818,60594.0,60593.0,0.28127007]
[1728522512925,0.01060818,60594.0,60593.0,0.28127007]
[1728522513194,0.004,60594.0,60593.0,0.28127007]
[1728522513441,0.01060818,60594.0,60593.0,0.28127007]
[1728522513689,0.008,60594.0,60593.0,0.28127007]
[1728522513914,0.04930382,60596.0,60595.0,0.16503]
[1728522514438,0.0559118,60596.0,60593.0,0.01623507]
[1728522514694,0.0559118,60596.0,60594.0,0.16503]
[1728522514909,0.0559118,60596.0,60594.0,0.165031]
[1728522515157,0.0559118,60596.0,60594.0,0.165032]
[1728522515381,0.0559118,60596.0,60593.0,0.01623507]
[1728522515601,0.0559118,60596.0,60594.0,0.165031]
[1728522515853,0.0599118,60596.0,60594.0,0.16503]
[1728522516063,0.0559118,60596.0,60593.0,0.01623507]
[1728522516287,0.0609118,60596.0,60595.0,0.16503]
[1728522516501,0.01160798,60596.0,60594.0,0.166031]
[1728522516742,0.04933296,60595.0,60594.0,0.166031]
[1728522516995,0.04933296,60595.0,60594.0,0.165031]
[1728522517209,0.04933296,60595.0,60593.0,0.01623507]
[1728522517456,0.05594094,60595.0,60594.0,0.165032]
[1728522518575,0.00660798,60595.0,60594.0,0.165032]
[1728522519523,0.01060798,60595.0,60594.0,0.165032]
[1728522519761,0.01060798,60595.0,60594.0,0.35346553]
[1728522520215,0.004,60595.0,60594.0,0.35346553]
[1728522520931,0.01059406,60595.0,60594.0,1.04368753]
[1728522521177,0.01059406,60595.0,60594.0,0.45346553]
[1728522521442,0.004,60595.0,60594.0,0.45346553]
[1728522521652,0.004,60595.0,60594.0,0.86420553]
[1728522522098,0.004,60595.0,60594.0,0.265032]
[1728522522348,0.004,60595.0,60594.0,0.165032]
[1728522522575,0.05993915,60595.0,60594.0,0.265032]
[1728522523571,0.01060619,60595.0,60594.0,0.265032]
[1728522523802,0.08456192,60595.0,60594.0,0.265032]
[1728522524723,0.01060619,60595.0,60594.0,0.265032]
[1728522525409,0.08473661,60595.0,60594.0,0.265032]
[1728522525647,0.01060619,60595.0,60594.0,0.265032]
[1728522525868,0.29164728,60595.0,60594.0,0.265032]
[1728522526312,0.01060619,60595.0,60594.0,0.265032]
[1728522526569,0.29165243,60595.0,60593.0,0.01623507]
[1728522526776,0.07413396,60594.0,60593.0,0.18127007]
[1728522527036,0.07413396,60594.0,60593.0,0.28127007]
[1728522527957,0.08074015,60594.0,60593.0,0.28127007]
[1728522528179,0.07413396,60594.0,60593.0,0.28127007]
[1728522529087,0.08074015,60594.0,60593.0,0.28127007]
[1728522529303,0.08474015,60594.0,60593.0,0.28127007]
[1728522532460,0.07813396,60594.0,60593.0,0.28127007]
[1728522532695,0.08474015,60594.0,60593.0,0.28127007]
[1728522533416,0.08475493,60594.0,60593.0,0.28127007]
[1728522533916,0.01060619,60594.0,60593.0,0.28127007]
[1728522534168,0.06003794,60594.0,60593.0,0.28127007]
[1728522534404,0.05343175,60594.0,60593.0,0.28127007]
[1728522534642,0.06004209,60594.0,60593.0,0.28127007]
[1728522534851,0.05343175,60594.0,60593.0,0.28127007]
[1728522535092,0.06004209,60594.0,60593.0,0.28127007]
[1728522535335,0.06004177,60594.0,60593.0,0.28127007]
[1728522536788,0.08475908,60594.0,60593.0,0.01623507]
[1728522537035,0.2919522,60594.0,60593.0,0.01623507]
[1728522537289,0.31666845,60594.0,60593.0,0.11623507]
[1728522538196,0.31667253,60594.0,60593.0,0.01623507]
[1728522538429,0.31667253,60594.0,60593.0,0.11623507]
[1728522539654,0.31667253,60594.0,60593.0,0.01623507]
[1728522541997,0.35812106,60594.0,60593.0,0.001634]
[1728522542238,0.165058,60585.0,60583.0,0.2483382]
[1728522542474,0.34753872,60584.0,60583.0,0.2483382]
[1728522542762,0.3541175,60584.0,60583.0,0.2483382]
[1728522543008,0.3541175,60584.0,60575.0,0.25833314]
[1728522543009,0.4694185,60584.0,60579.0,0.166706]
[1728522543235,0.12358635,60580.0,60579.0,0.001634]
[1728522543475,0.18247872,60580.0,60579.0,0.001634]
[1728522543703,0.3060356,60580.0,60579.0,0.001634]
[1728522543967,0.31261438,60580.0,60579.0,0.001634]
[1728522545614,0.1890575,60580.0,60579.0,0.001634]
[1728522546115,0.1890575,60580.0,60579.0,0.18204654]
[1728522546349,0.1890575,60580.0,60579.0,0.167707]
[1728522546562,0.28785422,60580.0,60579.0,0.167707]
[1728522547079,0.08067475,60580.0,60579.0,0.167707]
[1728522547304,0.00657878,60580.0,60579.0,0.248407]
[1728522547525,0.04939426,60581.0,60580.0,0.16507]
[1728522547767,0.04939545,60581.0,60580.0,0.35350353]
[1728522548439,0.04939853,60582.0,60580.0,0.51857453]
[1728522548664,0.04939853,60582.0,60581.0,0.165068]
[1728522548889,0.07409547,60582.0,60580.0,0.51857453]
[1728522549149,0.07409547,60582.0,60581.0,0.165068]
[1728522549377,0.07409547,60583.0,60582.0,0.165065]
[1728522549602,0.09879672,60584.0,60581.0,0.330135]
[1728522549824,0.09879672,60584.0,60583.0,0.165062]
[1728522550306,0.28114772,60585.0,60583.0,0.165062]
[1728522550549,0.28114772,60585.0,60581.0,0.330135]
[1728522550550,0.09879672,60584.0,60581.0,0.330135]
[1728522550767,0.28114772,60584.0,60583.0,0.165062]
[1728522551519,0.28116986,60584.0,60583.0,0.165062]
[1728522551995,0.09881448,60584.0,60583.0,0.165062]
[1728522552224,0.09881484,60584.0,60582.0,0.33013]
[1728522552482,0.09881484,60584.0,60583.0,0.265062]
[1728522552483,0.10181484,60584.0,60583.0,0.265062]
[1728522552742,0.003,60584.0,60583.0,0.265062]
[1728522552978,0.003,60584.0,60583.0,0.86353264]
[1728522553236,0.000817,60598.0,60588.0,0.165049]
[1728522553237,0.0494099,60589.0,60588.0,0.165049]
[1728522553468,0.12352476,60593.0,60592.0,0.165038]
[1728522553469,0.0494099,60593.0,60592.0,0.165038]
[1728522553714,0.0494099,60594.0,60593.0,0.165035]
[1728522553959,0.0494099,60594.0,60593.0,0.453747]
[1728522553960,0.05592163,60594.0,60593.0,0.453747]
[1728522554223,0.05592163,60594.0,60593.0,0.311004]
[1728522554456,0.00651173,60594.0,60593.0,0.311004]
[1728522554680,0.0494099,60595.0,60594.0,0.165032]
[1728522554906,0.0494099,60595.0,60594.0,0.39411]
[1728522555637,0.04940339,60595.0,60594.0,0.724175]
[1728522556114,0.04940339,60596.0,60595.0,0.16503]
[1728522556339,0.04940339,60597.0,60596.0,0.265027]
[1728522556562,0.000817,60598.0,60597.0,0.265024]
[1728522556563,0.05022039,60598.0,60597.0,0.265024]
[1728522559566,0.05022039,60598.0,60597.0,0.266024]
[1728522560436,0.05020875,60598.0,60597.0,0.266024]
[1728522560898,0.05020875,60598.0,60597.0,0.001]
[1728522560899,0.21522975,60598.0,60597.0,0.001]
[1728522561129,0.45351782,60598.0,60597.0,0.001]
[1728522561356,0.35473431,60598.0,60597.0,0.001]
[1728522565184,0.35473965,60598.0,60597.0,0.001]
[1728522566770,0.31320695,60598.0,60597.0,0.001]
[1728522566991,0.31320695,60598.0,60597.0,0.166024]
[1728522567469,0.31320695,60598.0,60597.0,0.001]
[1728522567695,0.35473965,60598.0,60597.0,0.001]
[1728522568169,0.35475465,60598.0,60597.0,0.001]
[1728522568390,0.47824667,60598.0,60597.0,0.001]
[1728522568608,0.35475465,60598.0,60597.0,0.001]
[1728522569276,0.18973365,60598.0,60597.0,0.001]
[1728522569731,0.18973365,60598.0,60595.0,0.165028]
[1728522569962,0.30584464,60597.0,60595.0,0.165028]
[1728522570202,0.09879871,60596.0,60595.0,0.165028]
[1728522570432,0.10540085,60596.0,60595.0,0.165028]